[Event "AI Cup Div-3 2023"]
[Site "Online"]
[Date "2023.09.25"]
[Round "1.1"]
[White "Esipenko, Andrey"]
[Black "Chigaev, Maksim"]
[Result "1-0"]
[Annotator "TA"]
[ECO "A34"]
[WhiteElo "2683"]
[BlackElo "2615"]
[PlyCount "41"]
[EventDate "2023.09.18"]
[EventType "k.o."]
[EventCountry "NET"]
[SourceTitle "playchess.com"]
[Source "ChessBase"]
[SourceQuality "1"]
[TimeControl "900+3"]

{[%evp 16,41,6,8,20,-18,9,0,8,0,6,4,7,7,127,16,342,40,37,52,44,18,62,69,482,492,497,489]} 1. g3 {[%emt 0:00:14]} d5 {[%emt 0:00:18]} 2. Nf3 {[%emt 0:00:05]} Nf6 {[%emt 0:00:02]} 3. Bg2 {[%emt 0:00:02]} e6 {[%emt 0:00:05]} 4. O-O {[%emt 0:00:08]} Be7 {[%emt 0:00:01]} 5. c4 {[%emt 0:01:16]} O-O {[%emt 0:00:03]} 6. d3 {[%emt 0:00:02][%cal Bd2d3,Bd3d4][%mdl 32]} c5 {[%emt 0:00:10]} 7. d4 {[%emt 0:00:01]} Nc6 {[%emt 0:00:09]} 8. cxd5 {[%emt 0:00:08]} exd5 {[%emt 0:00:02]} 9. Nc3 {[%emt 0:00:21]} h6 {[%emt 0:00:17] A34: Symmetrical English: 2 Nc3, lines with ...d5.} 10. Bf4 {[%emt 0:00:08]} Be6 {[%emt 0:00:26]} 11. Rc1 {[%emt 0:00:03]} c4 {[%emt 0:00:33] The position is equal.} 12. Ne5 {[%emt 0:00:06][%cal Oe5c4]} Qb6 {[%emt 0:00:02][%csl LRb2,LRd4] [#]} 13. b3 $146 {[%emt 0:00:14]} ({Predecessor:} 13. Na4 Qa5 14. b3 Nxe5 15. dxe5 Nd7 16. bxc4 dxc4 17. Bxb7 Rab8 18. Bg2 Nxe5 19. Nc3 Rbd8 {0-1 Saduakassova,D (2460)-Batsiashvili,N (2502) Wch Blitz (Women) 2017 (21)}) 13... Ba3 {[%emt 0:00:55]} (13... Nxd4 $2 14. Be3 $18 (14. Na4 Nxe2+ 15. Qxe2 Qa6 $18)) (13... cxb3 {simplifies} 14. Nxc6 bxc6 15. axb3 Bf5) 14. Rb1 {[%emt 0:01:59] bxc4 would be deadly.} Bf5 {[%emt 0:02:02] [#]} (14... Nxd4 $2 15. bxc4 (15. Na4 Nxe2+ 16. Qxe2 Qa5 $18) 15... Qc5 16. Be3 Nxe2+ 17. Nxe2 $18) (14... Qxd4 $11 15. Qxd4 Nxd4) 15. e4 {[%emt 0:00:20]} (15. Nxd5 $6 Nxd5 16. Bxd5 Nxe5 17. Bxe5 Bxb1 18. Qxb1 c3 $11) (15. bxc4 $1 $16 Bxb1 16. Nxb1) 15... Nxe4 $2 {[%emt 0:01:12][%mdl 8192]} (15... dxe4 $11 16. g4 (16. bxc4 Qxd4 17. Rxb7 Qxc3 $11) (16. Nxc4 Qa6 $11) 16... Nxe5 17. gxf5 Nd3) 16. Nxe4 $2 {[%emt 0:02:27]} (16. Nxd5 $18 Qd8 17. bxc4) 16... dxe4 $14 {[%emt 0:02:29]} 17. Nxc4 {[%emt 0:02:07]} Qa6 {[%emt 0:00:03]} 18. d5 $36 {[%emt 0:00:00][%mdl 2048] White has good play.} Rfd8 {[%emt 0:02:25]} 19. d6 {[%emt 0:01:37]} Bc5 $2 {[%emt 0:00:45][%mdl 8192]} (19... Nb4 $14) 20. Qd5 $1 $18 {[%emt 0:00:15][%csl LRc5,LRe4,LRf5]} Qb5 {[%emt 0:00:02][%cal Oc5f2] [#] White must now prevent ...Bxf2+!} 21. Be3 {[%emt 0:00:00] Weighted Error Value: White=0.50/Black=1.16} (21. Qxf5 $2 {is the wrong capture.} Bxf2+ {[%mdl 64] Discovered Attack} 22. Rxf2 Qxf5 $19) 1-0

[Event "AI Cup Div-3 2023"]
[Site "Online"]
[Date "2023.09.25"]
[Round "1.1"]
[White "Meier, Georg"]
[Black "Demchenko, Anton"]
[Result "1/2-1/2"]
[Annotator "ChessBase"]
[ECO "A47"]
[WhiteElo "2628"]
[BlackElo "2608"]
[PlyCount "76"]
[EventDate "2023.09.18"]
[EventType "k.o."]
[EventCountry "NET"]
[SourceTitle "playchess.com"]
[Source "ChessBase"]
[SourceQuality "1"]
[TimeControl "900+3"]

1. d4 {[%emt 0:00:04]} Nf6 {[%emt 0:00:07]} 2. Nf3 {[%emt 0:00:01]} g6 {[%emt 0:00:14]} 3. b3 {[%emt 0:00:02]} Bg7 {[%emt 0:00:07]} 4. Bb2 {[%emt 0:00:02]} O-O {[%emt 0:00:03]} 5. Nbd2 {[%emt 0:00:01]} d6 {[%emt 0:00:08]} 6. e3 {[%emt 0:00:24]} b6 {[%emt 0:00:48]} 7. Bd3 {[%emt 0:00:06]} Bb7 {[%emt 0:00:06]} 8. Qe2 {[%emt 0:00:06]} a5 {[%emt 0:00:17]} 9. O-O {[%emt 0:00:12]} a4 {[%emt 0:00:21]} 10. c4 {[%emt 0:00:01]} Nc6 {[%emt 0:00:34]} 11. Bc3 {[%emt 0:00:42]} axb3 {[%emt 0:00:14]} 12. axb3 {[%emt 0:00:01]} e6 {[%emt 0:00:10]} 13. e4 {[%emt 0:00:30]} Nh5 {[%emt 0:02:49]} 14. Qe3 {[%emt 0:00:33]} Qf6 {[%emt 0:01:04]} 15. g3 {[%emt 0:03:20]} e5 {[%emt 0:00:07]} 16. d5 {[%emt 0:00:02]} Nd4 {[%emt 0:00:05]} 17. Kg2 {[%emt 0:00:03]} c5 {[%emt 0:00:20]} 18. dxc6 {[%emt 0:00:05]} Bxc6 {[%emt 0:00:01]} 19. Rxa8 {[%emt 0:00:44]} Bxa8 {[%emt 0:01:01]} 20. Ra1 {[%emt 0:00:04]} Rb8 {[%emt 0:00:37]} 21. h3 {[%emt 0:01:52]} Nxf3 {[%emt 0:00:15]} 22. Nxf3 {[%emt 0:00:16]} Qe7 {[%emt 0:00:00]} 23. Kg1 {[%emt 0:00:45]} Bc6 {[%emt 0:00:09]} 24. Nd2 {[%emt 0:00:22]} Nf6 {[%emt 0:00:14]} 25. Bb2 {[%emt 0:00:15]} Qb7 {[%emt 0:00:11]} 26. b4 {[%emt 0:00:19]} Bd7 {[%emt 0:00:19]} 27. Bf1 {[%emt 0:00:12]} h5 {[%emt 0:00:21]} 28. b5 {[%emt 0:01:06]} Qc8 {[%emt 0:00:19]} 29. h4 {[%emt 0:00:11]} Ng4 {[%emt 0:00:55]} 30. Qe2 {[%emt 0:00:02]} f5 {[%emt 0:00:42]} 31. Nf3 {[%emt 0:00:29]} Qc7 {[%emt 0:01:51]} 32. Ng5 {[%emt 0:01:02]} Rf8 {[%emt 0:00:07]} 33. c5 {[%emt 0:00:02]} dxc5 {[%emt 0:00:14]} 34. Qc4+ {[%emt 0:01:24]} Kh8 {[%emt 0:00:01]} 35. Nf7+ {[%emt 0:00:14]} Kh7 {[%emt 0:00:01]} 36. Ng5+ {[%emt 0:00:01]} Kh8 {[%emt 0:00:01]} 37. Nf7+ {[%emt 0:00:01]} Kh7 {[%emt 0:00:00]} 38. Ng5+ {[%emt 0:00:01]} Kh8 {[%emt 0:00:01]} 1/2-1/2

[Event "AI Cup Div-3 2023"]
[Site "Online"]
[Date "2023.09.25"]
[Round "1.1"]
[White "Durarbayli, Vasif"]
[Black "Sargsyan, Shant"]
[Result "1/2-1/2"]
[Annotator "ChessBase"]
[ECO "C85"]
[WhiteElo "2625"]
[BlackElo "2631"]
[PlyCount "95"]
[EventDate "2023.09.18"]
[EventType "k.o."]
[EventCountry "NET"]
[SourceTitle "playchess.com"]
[Source "ChessBase"]
[SourceQuality "1"]
[TimeControl "900+3"]

1. e4 {[%emt 0:00:03]} e5 {[%emt 0:00:09]} 2. Nf3 {[%emt 0:00:02]} Nc6 {[%emt 0:00:01]} 3. Bb5 {[%emt 0:00:00]} a6 {[%emt 0:00:01]} 4. Ba4 {[%emt 0:00:01]} Nf6 {[%emt 0:00:01]} 5. O-O {[%emt 0:00:01]} Be7 {[%emt 0:00:02]} 6. Bxc6 {[%emt 0:00:01]} dxc6 {[%emt 0:00:04]} 7. Re1 {[%emt 0:00:00]} Qd6 {[%emt 0:00:03]} 8. Na3 {[%emt 0:00:03]} Be6 {[%emt 0:00:08]} 9. d4 {[%emt 0:02:47]} Nd7 {[%emt 0:00:47]} 10. c3 {[%emt 0:01:23]} O-O {[%emt 0:00:32]} 11. Be3 {[%emt 0:00:58]} b5 {[%emt 0:01:02]} 12. h3 {[%emt 0:00:20]} f6 {[%emt 0:00:12]} 13. Qe2 {[%emt 0:00:18]} c5 {[%emt 0:00:19]} 14. Red1 {[%emt 0:00:25]} Qb6 {[%emt 0:00:20]} 15. Nc2 {[%emt 0:00:56]} cxd4 {[%emt 0:01:09]} 16. cxd4 {[%emt 0:00:01]} Qb7 {[%emt 0:00:05]} 17. d5 {[%emt 0:00:59]} Bf7 {[%emt 0:00:03]} 18. Nh4 {[%emt 0:00:01]} g6 {[%emt 0:00:08]} 19. Qg4 {[%emt 0:00:01]} Rfd8 {[%emt 0:00:48]} 20. Nf5 {[%emt 0:00:04]} Bf8 {[%emt 0:00:00]} 21. Bh6 {[%emt 0:00:12]} Nc5 {[%emt 0:00:26]} 22. Bxf8 {[%emt 0:00:20]} Kxf8 {[%emt 0:00:02]} 23. Nh6 {[%emt 0:00:54]} c6 {[%emt 0:01:12]} 24. Nxf7 {[%emt 0:01:10]} Kxf7 {[%emt 0:00:04]} 25. b4 {[%emt 0:00:03]} h5 {[%emt 0:00:08]} 26. Qf3 {[%emt 0:00:15]} Na4 {[%emt 0:00:01]} 27. Ne3 {[%emt 0:00:19]} Nb6 {[%emt 0:00:01]} 28. dxc6 {[%emt 0:00:07]} Qxc6 {[%emt 0:00:00]} 29. Rac1 {[%emt 0:00:01]} Rxd1+ {[%emt 0:00:30]} 30. Qxd1 {[%emt 0:00:03]} Nc4 {[%emt 0:00:03]} 31. Qd3 {[%emt 0:00:35]} Rc8 {[%emt 0:00:05]} 32. a4 {[%emt 0:00:13]} Qd6 {[%emt 0:00:35]} 33. Qb3 {[%emt 0:00:19]} Qd4 {[%emt 0:00:08]} 34. axb5 {[%emt 0:00:23]} axb5 {[%emt 0:00:02]} 35. Qa2 {[%emt 0:00:25]} Qxe4 {[%emt 0:01:27]} 36. Qa7+ {[%emt 0:00:04]} Kg8 {[%emt 0:00:05]} 37. Qe7 {[%emt 0:01:13]} Qc6 {[%emt 0:00:16]} 38. Nxc4 {[%emt 0:00:01]} bxc4 {[%emt 0:00:03]} 39. b5 {[%emt 0:00:00]} Qe8 {[%emt 0:01:54]} 40. Qxf6 {[%emt 0:00:10]} c3 {[%emt 0:00:03]} 41. b6 {[%emt 0:00:14]} Rc6 {[%emt 0:00:02]} 42. Qf3 {[%emt 0:00:07]} Rxb6 {[%emt 0:00:01]} 43. Rxc3 {[%emt 0:00:07]} e4 {[%emt 0:00:07]} 44. Qf4 {[%emt 0:00:08]} Rb1+ {[%emt 0:00:22]} 45. Kh2 {[%emt 0:00:02]} Rb5 {[%emt 0:00:02]} 46. Rc7 {[%emt 0:00:28]} Qe5 {[%emt 0:00:20]} 47. Qxe5 {[%emt 0:00:13]} Rxe5 {[%emt 0:00:00]} 48. h4 {[%emt 0:00:01]} 1/2-1/2

[Event "AI Cup Div-3 2023"]
[Site "Online"]
[Date "2023.09.25"]
[Round "1.1"]
[White "Martinez Alcantara, Jose Eduardo"]
[Black "Guseinov, Gadir"]
[Result "1/2-1/2"]
[Annotator "ChessBase"]
[ECO "B40"]
[WhiteElo "2611"]
[BlackElo "2636"]
[PlyCount "92"]
[EventDate "2023.09.18"]
[EventType "k.o."]
[EventCountry "NET"]
[SourceTitle "playchess.com"]
[Source "ChessBase"]
[SourceQuality "1"]
[TimeControl "900+3"]

1. e4 {[%emt 0:00:04]} c5 {[%emt 0:00:10]} 2. Nf3 {[%emt 0:00:01]} e6 {[%emt 0:00:12]} 3. b3 {[%emt 0:00:09]} a6 {[%emt 0:00:18]} 4. Bb2 {[%emt 0:00:01]} Nc6 {[%emt 0:00:01]} 5. c4 {[%emt 0:00:05]} Qc7 {[%emt 0:00:21]} 6. g3 {[%emt 0:00:02]} Nf6 {[%emt 0:00:21]} 7. e5 {[%emt 0:00:04]} Ng4 {[%emt 0:00:04]} 8. Qe2 {[%emt 0:00:01]} b5 {[%emt 0:01:16]} 9. h3 {[%emt 0:03:54]} Nh6 {[%emt 0:00:03]} 10. Bg2 {[%emt 0:00:01]} bxc4 {[%emt 0:00:02]} 11. bxc4 {[%emt 0:00:06]} Rb8 {[%emt 0:00:01]} 12. Bc3 {[%emt 0:00:05]} Nf5 {[%emt 0:00:19]} 13. O-O {[%emt 0:00:16]} Nfd4 {[%emt 0:01:04]} 14. Bxd4 {[%emt 0:00:03]} cxd4 {[%emt 0:01:11]} 15. d3 {[%emt 0:00:03]} Bb4 {[%emt 0:00:57]} 16. Rd1 {[%emt 0:03:28]} O-O {[%emt 0:01:43]} 17. Nbd2 {[%emt 0:00:02]} a5 {[%emt 0:00:07]} 18. Rab1 {[%emt 0:00:31]} Ba6 {[%emt 0:00:19]} 19. Nb3 {[%emt 0:00:24]} Bc3 {[%emt 0:00:20]} 20. Nc5 {[%emt 0:00:02]} Rxb1 {[%emt 0:01:00]} 21. Rxb1 {[%emt 0:00:01]} Rb8 {[%emt 0:00:01]} 22. Rxb8+ {[%emt 0:01:07]} Nxb8 {[%emt 0:00:03]} 23. Ng5 {[%emt 0:00:08]} h6 {[%emt 0:00:44]} 24. Nge4 {[%emt 0:00:07]} Bb4 {[%emt 0:00:13]} 25. Nxa6 {[%emt 0:00:20]} Nxa6 {[%emt 0:00:00]} 26. f4 {[%emt 0:00:02]} Nc5 {[%emt 0:00:34]} 27. Qc2 {[%emt 0:00:41]} Nxe4 {[%emt 0:00:18]} 28. Bxe4 {[%emt 0:00:00]} d6 {[%emt 0:00:01]} 29. exd6 {[%emt 0:00:06]} Qxd6 {[%emt 0:00:41]} 30. Kg2 {[%emt 0:00:11]} g6 {[%emt 0:00:07]} 31. Qa4 {[%emt 0:00:11]} Kg7 {[%emt 0:00:01]} 32. Qb5 {[%emt 0:00:07]} Qc5 {[%emt 0:00:11]} 33. Qb7 {[%emt 0:00:40]} Qe7 {[%emt 0:00:07]} 34. Qc8 {[%emt 0:00:15]} Qd6 {[%emt 0:00:08]} 35. h4 {[%emt 0:00:06]} h5 {[%emt 0:00:01]} 36. Qb7 {[%emt 0:00:07]} Qe7 {[%emt 0:00:07]} 37. Qb5 {[%emt 0:00:01]} Qd6 {[%emt 0:00:05]} 38. a4 {[%emt 0:00:06]} Qc5 {[%emt 0:00:07]} 39. Bf3 {[%emt 0:00:09]} Kf6 {[%emt 0:00:11]} 40. Qb8 {[%emt 0:00:08]} Kg7 {[%emt 0:00:01]} 41. Qb5 {[%emt 0:00:02]} Kf6 {[%emt 0:00:01]} 42. Bc6 {[%emt 0:00:03]} Kg7 {[%emt 0:00:02]} 43. Be8 {[%emt 0:00:10]} Kf8 {[%emt 0:00:12]} 44. Bc6 {[%emt 0:00:09]} Kg7 {[%emt 0:00:02]} 45. Be8 {[%emt 0:00:01]} Kf8 {[%emt 0:00:01]} 46. Bc6 {[%emt 0:00:01]} Kg7 {[%emt 0:00:00]} 1/2-1/2

[Event "AI Cup Div-3 2023"]
[Site "Online"]
[Date "2023.09.25"]
[Round "1.1"]
[White "Kravtsiv, Martyn"]
[Black "Robson, Ray"]
[Result "1-0"]
[Annotator "TA"]
[ECO "C58"]
[WhiteElo "2598"]
[BlackElo "2699"]
[PlyCount "103"]
[EventDate "2023.09.18"]
[EventType "k.o."]
[EventCountry "NET"]
[SourceTitle "playchess.com"]
[Source "ChessBase"]
[SourceQuality "1"]
[TimeControl "900+3"]

{[%evp 14,103,28,27,38,17,39,1,16,20,18,16,22,0,12,6,25,20,50,33,40,37,66,67,175,101,225,135,343,345,329,330,329,293,337,320,315,316,345,325,469,383,390,342,345,341,337,354,382,353,344,299,456,456,451,464,771,762,764,754,743,743,725,712,706,589,881,552,29982,5831,29977,29978,5389,591,589,591,591,587,585,572,582,559,545,533,593,563,741,734,877,843,833,817]} 1. e4 {[%emt 0:00:07]} e5 {[%emt 0:00:15]} 2. Nf3 {[%emt 0:00:02]} Nc6 {[%emt 0:00:08]} 3. Bc4 {[%emt 0:00:04]} Nf6 {[%emt 0:00:03]} 4. Ng5 {[%emt 0:00:03]} d5 {[%emt 0:00:01]} 5. exd5 {[%emt 0:00:04]} Na5 {[%emt 0:00:02]} 6. Bb5+ {[%emt 0:00:05]} c6 {[%emt 0:00:01]} 7. dxc6 {[%emt 0:00:01]} bxc6 {[%emt 0:00:01]} 8. Bd3 {[%emt 0:00:02]} Nd5 {[%emt 0:00:26] C58: Two Knights: 4 Ng5 d5 5 exd5 Na5 sidelines.} 9. Nf3 {[%emt 0:00:08][%cal Oe1g1]} ({Worse is} 9. Qh5 g6 10. Nxf7 gxh5 $17) 9... Bd6 {[%emt 0:00:16]} 10. Nc3 {[%emt 0:00:04]} O-O {[%emt 0:00:57] aiming for ...Nxc3. The position is equal.} 11. Be2 {[%emt 0:00:29]} f5 {[%emt 0:00:25]} 12. d3 {[%emt 0:00:04]} e4 {[%emt 0:02:05]} 13. Nd4 {[%emt 0:00:28][%cal Bf3d4,Bd4b5,Bb5c7,Bc7e6][%mdl 32]} Nxc3 {[%emt 0:04:31]} 14. bxc3 {[%emt 0:00:03] [#]} Qc7 $146 {[%emt 0:00:05]} ({Predecessor:} 14... Qf6 15. O-O Qe5 16. f4 Qe7 17. Kh1 Bd7 18. Rb1 Rad8 19. Bd2 c5 20. Nb5 Bb8 21. dxe4 fxe4 {1-0 Yu,Y (2709)-Ding,L (2791) Lindores Abbey Final 8 rapid 2020 (1.15)}) 15. h3 {[%emt 0:05:55]} Be5 {[%emt 0:00:17]} 16. O-O {[%emt 0:00:45]} c5 {[%emt 0:03:35]} 17. Nb5 {[%emt 0:00:53]} Qc6 {[%emt 0:00:01]} 18. d4 {[%emt 0:03:14]} Bf6 {[%emt 0:00:10]} ({Better is} 18... Bb8 $14) 19. Bf4 {[%emt 0:00:45]} (19. d5 $18 Qd7 20. d6) 19... Ba6 {[%emt 0:00:19]} (19... cxd4 $16 20. cxd4 Be6) 20. Rb1 {[%emt 0:00:47] Hoping for Nc7.} Rfd8 $2 {[%emt 0:01:04] Loses the game.} (20... g5 $16) 21. Nc7 $18 {[%emt 0:00:55][%mdl 64] [#] Discovered Attack} Bxe2 {[%emt 0:00:01]} 22. Qxe2 {[%emt 0:00:01]} Rac8 {[%emt 0:00:01][%cal Oc5d4]} 23. d5 {[%emt 0:00:01]} Qd7 {[%emt 0:00:00]} 24. Ne6 {[%emt 0:00:01]} Re8 {[%emt 0:00:01]} 25. Rfd1 {[%emt 0:00:16] Threatens to win with Qa6.} c4 {[%emt 0:00:35]} 26. Qe3 {[%emt 0:00:05]} Qe7 {[%emt 0:00:54]} (26... Qf7 $142 27. Rb5 Nb7) 27. Rb5 {[%emt 0:00:18]} Nc6 {[%emt 0:00:05]} 28. Nxg7 {[%emt 0:00:17]} Bxg7 {[%emt 0:00:05]} 29. dxc6 {[%emt 0:00:01]} Rxc6 {[%emt 0:00:03]} 30. Rxf5 {[%emt 0:00:02]} Rg6 {[%emt 0:00:02]} 31. Rfd5 {[%emt 0:00:09]} Qf8 {[%emt 0:00:03]} 32. g3 {[%emt 0:00:05]} h6 {[%emt 0:00:03]} (32... Bh6 {keeps fighting.}) 33. Rd7 {[%emt 0:00:01]} Qf5 {[%emt 0:00:01]} 34. Kh2 {[%emt 0:00:09]} ({Much less strong is} 34. Rxa7 Bf8 35. Rc7 Qxh3 $18) 34... Rf8 {[%emt 0:00:03]} (34... Bf8 $142 35. R1d5 (35. Rxa7 Bc5 $18) 35... Qe6 36. Qxa7 Qb6) 35. R1d5 {[%emt 0:00:09]} Qe6 {[%emt 0:00:02]} 36. R5d6 {[%emt 0:00:01]} Qf5 {[%emt 0:00:03]} 37. Rxg6 {[%emt 0:00:01]} Qxg6 {[%emt 0:00:00]} 38. Rxa7 {[%emt 0:00:01]} Rd8 {[%emt 0:00:05]} 39. Re7 {[%emt 0:00:03]} Rd1 {[%emt 0:00:07]} 40. Qxe4 {[%emt 0:00:02]} Qh5 {[%emt 0:00:04]} 41. Re8+ {[%emt 0:00:02]} (41. Qe6+ $142 Kf8 42. Be3 Rh1+ {[%mdl 64] Decoy} 43. Kxh1 Qxh3+ 44. Qxh3 Kxe7 45. Bc5+ Kf7 46. Qf5+ Bf6 47. Bd4) 41... Bf8 {[%emt 0:00:01]} 42. Qe6+ {[%emt 0:00:06]} Qf7 {[%emt 0:00:04]} 43. Qxf7+ {[%emt 0:00:02] White is clearly winning.} Kxf7 {[%emt 0:00:00][%mdl 4096] Endgame KRB-KRB} 44. Re4 {[%emt 0:00:01][%cal Be8e4,Be4c4,Bc4c6,Bc6e6][%mdl 32]} Ra1 {[%emt 0:00:05]} 45. Rxc4 {[%emt 0:00:01]} Rxa2 {[%emt 0:00:00]} 46. Kg2 {[%emt 0:00:01]} Rxc2 {[%emt 0:00:01]} 47. Rc6 {[%emt 0:00:04]} h5 {[%emt 0:00:03]} 48. Be3 {[%emt 0:00:01]} Be7 {[%emt 0:00:09]} 49. h4 {[%emt 0:00:01]} Ke8 {[%emt 0:00:03]} 50. Bd4 {[%emt 0:00:04]} Bf8 {[%emt 0:00:03]} 51. Re6+ {[%emt 0:00:01]} Kd7 {[%emt 0:00:03]} 52. Re5 {[%emt 0:00:02] Weighted Error Value: White=0.52/Black=0.64} 1-0

[Event "AI Cup Div-3 2023"]
[Site "Online"]
[Date "2023.09.25"]
[Round "1.1"]
[White "Vaibhav, Suri"]
[Black "Vokhidov, Shamsiddin"]
[Result "1-0"]
[Annotator "ChessBase"]
[ECO "A28"]
[WhiteElo "2588"]
[BlackElo "2578"]
[PlyCount "201"]
[EventDate "2023.09.18"]
[EventType "k.o."]
[EventCountry "NET"]
[SourceTitle "playchess.com"]
[Source "ChessBase"]
[SourceQuality "1"]
[TimeControl "900+3"]

1. c4 {[%emt 0:00:13]} e5 {[%emt 0:00:05]} 2. Nc3 {[%emt 0:00:01]} Nf6 {[%emt 0:00:02]} 3. Nf3 {[%emt 0:00:01]} Nc6 {[%emt 0:00:01]} 4. e3 {[%emt 0:00:01]} Bb4 {[%emt 0:00:03]} 5. Qc2 {[%emt 0:00:02]} Bxc3 {[%emt 0:00:01]} 6. Qxc3 {[%emt 0:00:01]} Qe7 {[%emt 0:00:03]} 7. d4 {[%emt 0:00:01]} Ne4 {[%emt 0:00:05]} 8. Qd3 {[%emt 0:00:11]} exd4 {[%emt 0:00:02]} 9. Nxd4 {[%emt 0:00:02]} Nc5 {[%emt 0:00:01]} 10. Qd1 {[%emt 0:00:03]} Nxd4 {[%emt 0:00:02]} 11. Qxd4 {[%emt 0:00:02]} Ne6 {[%emt 0:00:00]} 12. Qd5 {[%emt 0:02:14]} Rb8 {[%emt 0:00:03]} 13. b3 {[%emt 0:00:43]} b6 {[%emt 0:00:09]} 14. Bb2 {[%emt 0:00:02]} Bb7 {[%emt 0:00:03]} 15. Qf5 {[%emt 0:00:35]} Qb4+ {[%emt 0:00:12]} 16. Kd1 {[%emt 0:00:04]} d5 {[%emt 0:00:23]} 17. Kc2 {[%emt 0:01:54]} dxc4 {[%emt 0:03:10]} 18. Bxc4 {[%emt 0:00:06]} O-O {[%emt 0:00:45]} 19. Rad1 {[%emt 0:03:43]} Rbd8 {[%emt 0:00:13]} 20. f3 {[%emt 0:00:45]} Qe7 {[%emt 0:02:18]} 21. Qe5 {[%emt 0:00:30]} Bc8 {[%emt 0:00:03]} 22. h4 {[%emt 0:00:34]} f6 {[%emt 0:00:52]} 23. Qe4 {[%emt 0:00:05]} Rde8 {[%emt 0:00:26]} 24. g4 {[%emt 0:00:13]} Kh8 {[%emt 0:00:46]} 25. Bd3 {[%emt 0:00:36]} Qc5+ {[%emt 0:00:33]} 26. Kb1 {[%emt 0:00:01]} Ng5 {[%emt 0:00:10]} 27. Qf4 {[%emt 0:01:05]} Nf7 {[%emt 0:00:57]} 28. Rhe1 {[%emt 0:00:24]} Ne5 {[%emt 0:00:35]} 29. Bc2 {[%emt 0:00:05]} Ng6 {[%emt 0:00:18]} 30. Bxg6 {[%emt 0:00:11]} hxg6 {[%emt 0:00:00]} 31. Rc1 {[%emt 0:00:00]} Qd6 {[%emt 0:00:20]} 32. Qxd6 {[%emt 0:00:09]} cxd6 {[%emt 0:00:00]} 33. Rc7 {[%emt 0:00:01]} a6 {[%emt 0:00:11]} 34. Bd4 {[%emt 0:00:05]} b5 {[%emt 0:00:07]} 35. Rec1 {[%emt 0:00:10]} Be6 {[%emt 0:00:11]} 36. g5 {[%emt 0:00:04]} Kg8 {[%emt 0:00:35]} 37. R1c6 {[%emt 0:00:04]} Bd5 {[%emt 0:00:30]} 38. Rxd6 {[%emt 0:00:05]} Be6 {[%emt 0:00:32]} 39. Rxa6 {[%emt 0:00:05]} Rf7 {[%emt 0:00:05]} 40. Rxf7 {[%emt 0:00:09]} Kxf7 {[%emt 0:00:00]} 41. Ra7+ {[%emt 0:00:02]} Re7 {[%emt 0:00:02]} 42. Rxe7+ {[%emt 0:00:21]} Kxe7 {[%emt 0:00:00]} 43. Kb2 {[%emt 0:00:01]} Bd5 {[%emt 0:00:26]} 44. e4 {[%emt 0:00:03]} Be6 {[%emt 0:00:05]} 45. Kc3 {[%emt 0:00:08]} Bh3 {[%emt 0:00:10]} 46. Bc5+ {[%emt 0:00:09]} Ke6 {[%emt 0:00:02]} 47. Kd4 {[%emt 0:00:02]} Bg2 {[%emt 0:00:08]} 48. Ke3 {[%emt 0:00:03]} Bf1 {[%emt 0:00:00]} 49. Bb4 {[%emt 0:00:07]} Kf7 {[%emt 0:00:04]} 50. Bc3 {[%emt 0:00:04]} Ke6 {[%emt 0:00:01]} 51. f4 {[%emt 0:00:12]} Bg2 {[%emt 0:00:04]} 52. Kd4 {[%emt 0:00:02]} Kd6 {[%emt 0:00:02]} 53. Bb4+ {[%emt 0:00:06]} Ke6 {[%emt 0:00:03]} 54. Bc3 {[%emt 0:00:10]} Kd6 {[%emt 0:00:03]} 55. Bd2 {[%emt 0:00:10]} Bf1 {[%emt 0:00:04]} 56. Bb4+ {[%emt 0:00:08]} Ke6 {[%emt 0:00:02]} 57. Bf8 {[%emt 0:00:04]} Kf7 {[%emt 0:00:01]} 58. Ba3 {[%emt 0:00:01]} Ke6 {[%emt 0:00:03]} 59. Bb2 {[%emt 0:00:01]} Bg2 {[%emt 0:00:02]} 60. a4 {[%emt 0:00:05]} bxa4 {[%emt 0:00:04]} 61. bxa4 {[%emt 0:00:01]} Bf1 {[%emt 0:00:26]} 62. a5 {[%emt 0:00:03]} Be2 {[%emt 0:00:07]} 63. Ke3 {[%emt 0:00:14]} Bf1 {[%emt 0:00:03]} 64. Bc3 {[%emt 0:00:02]} Ba6 {[%emt 0:00:04]} 65. Kd4 {[%emt 0:00:03]} Bb7 {[%emt 0:00:03]} 66. Bb4 {[%emt 0:00:05]} Ba6 {[%emt 0:00:13]} 67. Ba3 {[%emt 0:00:15]} Bb7 {[%emt 0:00:03]} 68. Ke3 {[%emt 0:00:05]} Ba6 {[%emt 0:00:03]} 69. Bf8 {[%emt 0:00:02]} Kf7 {[%emt 0:00:01]} 70. Bc5 {[%emt 0:00:01]} Ke6 {[%emt 0:00:01]} 71. Bd4 {[%emt 0:00:01]} Bb7 {[%emt 0:00:01]} 72. Bb2 {[%emt 0:00:03]} Ba6 {[%emt 0:00:02]} 73. gxf6 {[%emt 0:00:02]} gxf6 {[%emt 0:00:02]} 74. e5 {[%emt 0:00:01]} fxe5 {[%emt 0:00:12]} 75. fxe5 {[%emt 0:00:01]} Kd5 {[%emt 0:00:10]} 76. Kf4 {[%emt 0:00:07]} Bd3 {[%emt 0:00:11]} 77. Bc3 {[%emt 0:00:05]} Ke6 {[%emt 0:00:34]} 78. Ke3 {[%emt 0:00:01]} Bf1 {[%emt 0:00:02]} 79. Ke4 {[%emt 0:00:01]} Be2 {[%emt 0:00:03]} 80. Be1 {[%emt 0:00:03]} Bf1 {[%emt 0:00:02]} 81. Bc3 {[%emt 0:00:03]} Be2 {[%emt 0:00:01]} 82. Kd4 {[%emt 0:00:00]} Bf1 {[%emt 0:00:08]} 83. Kc5 {[%emt 0:00:01]} Kd7 {[%emt 0:00:06]} 84. Kb6 {[%emt 0:00:01]} Be2 {[%emt 0:00:05]} 85. a6 {[%emt 0:00:01]} Bf3 {[%emt 0:00:03]} 86. a7 {[%emt 0:00:01]} Bg2 {[%emt 0:00:02]} 87. Kc5 {[%emt 0:00:04]} Ke6 {[%emt 0:00:02]} 88. Kd4 {[%emt 0:00:04]} Kf5 {[%emt 0:00:02]} 89. Ba5 {[%emt 0:00:02]} Bf3 {[%emt 0:00:08]} 90. Bd8 {[%emt 0:00:01]} Bg2 {[%emt 0:00:03]} 91. Bf6 {[%emt 0:00:01]} Ke6 {[%emt 0:00:03]} 92. Kc5 {[%emt 0:00:04]} Kd7 {[%emt 0:00:01]} 93. Kb6 {[%emt 0:00:06]} Bd5 {[%emt 0:00:03]} 94. Bg5 {[%emt 0:00:04]} Bf3 {[%emt 0:00:04]} 95. e6+ {[%emt 0:00:11]} Kxe6 {[%emt 0:00:01]} 96. Kc7 {[%emt 0:00:01]} Be4 {[%emt 0:00:09]} 97. Kb8 {[%emt 0:00:00]} Kd7 {[%emt 0:00:02]} 98. a8=Q {[%emt 0:00:01]} Bxa8 {[%emt 0:00:00]} 99. Kxa8 {[%emt 0:00:01]} Kc7 {[%emt 0:00:01]} 100. Ka7 {[%emt 0:00:01]} Kc6 {[%emt 0:00:03]} 101. Kb8 {[%emt 0:00:00]} 1-0